bitfinex/quotes_ETHUSD_20250916
["timestamp","ask_amount","ask_price","bid_price","bid_amount"]
[1758053998490,18.99185881,4493.2,4493.1,1e-08]
[1758053998695,19.31255881,4493.2,4493.1,1e-08]
[1758053999701,18.99185881,4493.2,4493.1,1e-08]
[1758054000064,19.31255881,4493.2,4493.1,1e-08]
[1758054002381,2.22578347,4492.8,4492.7,1e-08]
[1758054002582,2.22608076,4492.2,4492.1,0.01]
[1758054002789,7.85410387,4492.2,4492.1,0.01]
[1758054002966,7.85410387,4492.2,4492.1,0.3017]
[1758054003166,7.85410387,4492.2,4492.1,0.8008]
[1758054003561,7.85410387,4492.2,4492.1,0.3017]
[1758054003780,8.86577292,4492.2,4492.1,0.01]
[1758054004362,9.18247292,4492.2,4492.1,0.01]
[1758054004594,2.22622943,4491.9,4491.6,0.972]
[1758054004796,12.59289821,4491.9,4491.6,0.972]
[1758054005002,12.59289821,4491.9,4491.8,0.9117]
[1758054005166,12.59289821,4491.9,4490.9,0.4991]
[1758054005167,10.68336878,4491.9,4490.9,0.4991]
[1758054005367,7.27250266,4491.2,4491.1,0.982]
[1758054005596,13.85142684,4491.2,4491.1,1.2737]
[1758054005902,8.80550059,4491.2,4491.1,1.2737]
[1758054006478,7.85559952,4491.2,4491.1,1.2737]
[1758054009120,12.90152577,4491.2,4491.1,0.01]
[1758054010114,12.90152577,4491.2,4491.1,0.3017]
[1758054010429,13.69565251,4491.2,4491.1,0.01]
[1758054010632,14.64775251,4491.2,4491.1,0.01]
[1758054010813,15.89327652,4491.2,4491.1,0.01]
[1758054011642,2.22707229,4490.2,4490.1,0.81]
[1758054011952,6.1450954,4490.2,4490.1,0.81]
[1758054012110,6.1450954,4490.2,4490.1,1.6008]
[1758054012307,6.1450954,4490.2,4490.1,2.0737]
[1758054012735,6.1450954,4490.2,4490.1,1.6008]
[1758054012946,6.1450954,4490.2,4490.1,2.0737]
[1758054013951,11.72466056,4490.2,4490.1,1.1017]
[1758054014159,11.72466056,4490.2,4490.1,0.81]
[1758054014360,6.67873431,4490.2,4490.1,2.0737]
[1758054015236,6.67873431,4490.2,4490.1,1.6008]
[1758054015627,6.67873431,4490.2,4490.1,2.0737]
[1758054016023,6.67873431,4490.2,4490.1,1.6008]
[1758054016652,6.67873431,4490.2,4490.1,1.1017]
[1758054017154,7.47295484,4490.2,4490.1,0.81]
[1758054017354,7.95935484,4490.2,4490.1,0.81]
[1758054018730,8.42505484,4490.2,4490.1,0.81]
[1758054019822,7.47295484,4490.2,4490.1,0.81]
[1758054020424,8.42505484,4490.2,4490.1,0.81]
[1758054021058,8.42444411,4490.2,4490.1,0.81]
[1758054021261,7.26593173,4490.2,4490.1,0.81]
[1758054021760,7.75233173,4490.2,4490.1,0.81]
[1758054021946,7.95983905,4490.2,4490.1,0.81]
[1758054022148,7.75233173,4490.2,4490.1,0.81]
[1758054022548,3.23823173,4490.2,4490.1,0.81]
[1758054022749,6.94923173,4490.2,4490.1,2.0737]
[1758054022955,3.23823173,4490.2,4490.1,2.0737]
[1758054023152,7.15682074,4490.2,4490.1,2.0737]
[1758054023350,6.41559282,4490.2,4490.1,2.0737]
[1758054023561,6.62324391,4490.2,4490.1,1.1017]
[1758054024262,6.62324391,4490.2,4490.1,2.0737]
[1758054024765,6.62333231,4490.2,4490.1,1.6008]
[1758054024970,8.18406044,4490.2,4490.1,0.81]
[1758054025331,8.18406044,4490.2,4490.1,1.1057]
[1758054025332,4.47306044,4490.2,4490.1,1.1057]
[1758054025575,8.18406044,4490.2,4490.1,1.1057]
[1758054026475,4.47306044,4490.2,4490.1,2.0011]
[1758054026671,8.18506044,4490.2,4490.1,1.5626]
[1758054026970,8.18506044,4490.2,4490.1,0.81]
[1758054027150,8.48296044,4490.2,4490.1,0.81]
[1758054027472,8.18506044,4490.2,4490.1,1.1057]
[1758054027862,4.47310146,4490.2,4490.1,1.1057]
[1758054028070,6.62437333,4490.2,4490.1,2.0011]
[1758054029874,6.62437333,4490.2,4490.1,1.1057]
[1758054030182,6.62437333,4490.2,4490.1,2.0011]
[1758054031675,2.91237333,4490.2,4490.1,1.1057]
[1758054031883,2.91237333,4490.2,4490.1,1.5442]
[1758054032077,6.62437333,4490.2,4490.1,2.0011]
[1758054032479,8.18520556,4490.2,4490.1,2.0011]
[1758054032986,2.91237333,4490.2,4490.1,2.0011]
[1758054033167,6.62437333,4490.2,4490.1,2.0011]
[1758054034201,2.91237333,4490.2,4490.1,2.0011]
[1758054034499,6.62437333,4490.2,4490.1,2.0011]
[1758054035050,6.62437333,4490.2,4490.1,2.0021]
[1758054039566,6.83292993,4490.2,4490.1,2.0021]
[1758054040499,6.83292993,4490.2,4490.1,1.5636]
[1758054041017,7.13082993,4490.2,4490.1,0.811]
[1758054041182,9.28405598,4490.2,4490.1,0.811]
[1758054041390,8.49365598,4490.2,4490.1,1.1067]
[1758054041814,8.79155598,4490.2,4490.1,0.811]
[1758054041994,9.71835598,4490.2,4490.1,0.811]
[1758054044223,5.57205598,4490.2,4490.1,0.811]
[1758054044434,9.28405598,4490.2,4490.1,0.811]
[1758054044800,9.71835598,4490.2,4490.1,0.811]
[1758054045392,14.76428223,4490.2,4490.1,0.811]
[1758054045928,9.71835598,4490.2,4490.1,0.811]
[1758054046355,9.71835598,4490.2,4489.6,0.001]
[1758054046517,2.22732031,4489.7,4489.6,0.001]
[1758054046706,6.83416901,4489.7,4489.6,0.001]
[1758054046904,8.05886901,4489.7,4489.6,0.001]
[1758054047103,8.05910146,4489.7,4489.6,0.001]
[1758054047718,7.62480146,4489.7,4489.6,0.001]
[1758054047919,8.87032547,4489.7,4489.6,0.001]
[1758054049218,8.07992547,4489.7,4489.6,0.001]
[1758054049410,8.07992547,4489.7,4489.6,0.2967]
[1758054049734,8.07978098,4489.7,4489.6,0.2967]
[1758054050048,8.07978098,4489.7,4489.6,1.1921]
[1758054050532,8.07978098,4489.7,4489.6,0.7536]
[1758054050735,8.07978098,4489.7,4489.6,0.2967]
[1758054051041,8.87018098,4489.7,4489.6,0.001]
[1758054051434,9.30448098,4489.7,4489.6,0.001]
[1758054054448,9.30441233,4489.7,4489.6,0.001]
[1758054055553,8.87011233,4489.7,4489.6,0.001]
[1758054057016,9.32311233,4489.7,4489.6,0.001]
[1758054058941,8.87011233,4489.7,4489.6,0.001]
[1758054059540,8.07971233,4489.7,4489.6,0.3074]
[1758054059740,8.07971233,4489.7,4489.6,1.2501]
[1758054060275,4.36771233,4489.7,4489.6,1.2501]
[1758054060461,6.35666779,4489.7,4489.6,1.2501]
[1758054060652,6.83418832,4489.7,4489.6,1.2501]
[1758054071508,0.89486801,4489.7,4489.6,1.2501]
[1758054071670,0.20855843,4489.7,4489.6,1.2501]
[1758054071869,4.03175843,4489.7,4489.6,1.2501]
[1758054072304,4.03175843,4489.7,4489.6,1.37511]
[1758054072607,0.002,4490.1,4489.6,1.37511]
[1758054072826,0.002,4490.1,4489.8,8.29499497]
[1758054073109,0.002,4490.1,4489.9,0.02227221]
[1758054073408,0.002,4490.1,4490.0,0.3064]
[1758054073788,0.002,4490.1,4490.0,1.2491]
[1758054073988,0.002,4490.1,4490.0,2.20573672]
[1758054074796,0.002,4490.1,4490.0,7.43290821]
[1758054074996,0.002,4490.1,4490.0,8.33610821]
[1758054075909,0.002,4490.1,4490.0,8.22490821]
[1758054076613,0.002,4490.1,4490.0,11.93990821]
[1758054079237,0.002,4490.6,4490.5,12.08665191]
[1758054079384,0.002,4490.6,4490.5,13.2953171]
[1758054079585,0.002,4490.6,4490.5,14.5444171]
[1758054079906,0.002,4490.6,4490.5,18.34960735]
[1758054085930,0.002,4490.6,4490.5,18.46080735]
[1758054087443,0.002,4491.0,4490.9,12.08645356]
[1758054087744,0.002,4491.6,4490.9,17.50945356]
[1758054087964,0.002,4491.6,4491.0,7.30234232]
[1758054088114,0.002,4491.6,4491.0,7.28007557]
[1758054088752,0.002,4491.6,4491.0,7.36925469]
[1758054088954,0.002,4491.6,4491.0,8.67594689]
[1758054090227,0.002,4491.5,4491.0,8.67594689]
[1758054092072,0.002,4491.5,4491.0,12.88594689]
[1758054093770,0.01,4492.9,4491.5,0.792]
[1758054093947,0.01,4492.9,4492.8,2.22578347]
[1758054094146,0.01,4492.9,4492.8,12.00951188]
[1758054094347,1.2047,4492.9,4492.8,12.00951188]
[1758054097399,1.2047,4492.9,4492.8,12.12071188]
[1758054097580,0.7746,4492.9,4492.8,12.12071188]
[1758054098078,0.01,4492.9,4492.8,13.3761486]
[1758054098280,0.2962,4492.9,4492.8,16.0773486]
[1758054098479,0.7746,4492.9,4492.8,16.0773486]
[1758054099393,0.01,4492.9,4492.8,16.0773486]
[1758054099897,0.2962,4492.9,4492.8,16.0773486]
[1758054100097,0.7746,4492.9,4492.8,16.0773486]
[1758054100580,0.01,4492.9,4492.8,16.3761486]
[1758054100780,0.01,4492.9,4492.8,17.1681486]
[1758054101096,0.01,4492.9,4492.8,18.1307486]
[1758054101295,0.01,4492.9,4492.8,17.6675486]
[1758054101761,0.01,4492.9,4492.8,17.1681486]
[1758054101961,0.01,4492.9,4492.8,16.8693486]
[1758054103195,0.7746,4492.9,4492.8,16.8693486]
[1758054103564,0.2962,4492.9,4492.8,16.8693486]
[1758054103764,0.7746,4492.9,4492.8,16.8693486]
[1758054104264,0.7746,4492.9,4492.8,10.80162019]
[1758054104989,0.01,4492.9,4492.8,10.80162019]
[1758054105495,0.01,4492.9,4492.8,12.06302019]
[1758054106199,0.01,4492.9,4492.8,11.59982019]
[1758054107293,0.01,4492.9,4492.8,11.10042019]
[1758054107683,0.012,4492.9,4492.8,11.10042019]
[1758054107867,0.012,4492.9,4492.8,16.14628878]
[1758054109171,0.012,4492.9,4492.8,16.64568878]
[1758054109506,0.012,4492.9,4492.8,21.31888878]
[1758054110383,0.012,4492.9,4492.8,20.85568878]
[1758054110595,0.012,4492.9,4492.8,21.31888878]
[1758054111901,0.012,4492.9,4492.8,20.35628878]
[1758054112101,0.2982,4492.9,4492.8,15.01162019]
[1758054112400,0.7766,4492.9,4492.8,15.01162019]
[1758054112783,0.7766,4492.9,4492.8,15.00562019]
[1758054114801,0.012,4492.9,4492.8,15.00562019]
[1758054117604,0.012,4492.9,4492.8,10.79562019]
[1758054119731,1.2549,4492.9,4492.8,10.79362019]
[1758054120041,0.012,4492.9,4492.8,11.08932019]
[1758054120247,0.012,4492.9,4492.8,11.98662019]
[1758054122319,0.002,4493.2,4493.1,3.01763486]
[1758054122514,0.002,4493.2,4493.1,14.79375979]
[1758054122731,0.002,4493.2,4493.1,16.07570345]
[1758054123065,0.002,4493.2,4493.1,16.16483011]
[1758054123773,0.002,4493.2,4493.1,16.27675056]
[1758054123933,0.002,4493.2,4493.1,18.3435261]
[1758054127672,0.002,4493.7,4493.4,2.22545686]
[1758054127972,1e-08,4493.9,4493.8,0.792]
[1758054128269,1e-08,4493.9,4493.8,10.04324105]
[1758054128470,1e-08,4493.9,4493.8,10.45778817]
[1758054128654,1e-08,4493.9,4493.8,12.37616364]
[1758054130579,0.31450001,4493.9,4493.8,11.18316364]
[1758054130901,1e-08,4493.9,4493.8,16.22903223]
[1758054131197,0.81250001,4493.9,4493.8,16.22903223]
[1758054131584,0.31450001,4493.9,4493.8,16.22903223]
[1758054131765,1e-08,4493.9,4493.8,16.22903223]
[1758054132351,1e-08,4493.9,4493.8,16.52473223]
[1758054132994,1e-08,4493.9,4493.8,16.98523223]
[1758054134390,1e-08,4493.9,4493.8,16.52473223]
[1758054135090,1e-08,4493.9,4493.8,17.42203223]
[1758054137962,0.31450001,4493.9,4493.8,16.22903223]
[1758054138166,1.24290001,4493.9,4493.8,16.22903223]
[1758054138910,0.81250001,4493.9,4493.8,16.22903223]
[1758054139406,0.31450001,4493.9,4493.8,16.22903223]
[1758054140111,0.81250001,4493.9,4493.8,16.22903223]
[1758054140980,1e-08,4493.9,4493.8,16.22903223]
[1758054141791,0.31450001,4493.9,4493.8,16.22903223]
[1758054142317,1e-08,4493.9,4493.8,16.22903223]
[1758054142498,1e-08,4493.9,4493.8,20.43903223]
[1758054142903,1e-08,4493.9,4493.8,20.73473223]
[1758054144404,1e-08,4493.9,4493.8,20.43903223]
[1758054144612,1e-08,4493.9,4493.8,20.43803223]
[1758054144908,1e-08,4493.9,4493.8,20.43903223]
[1758054145113,0.00200001,4493.9,4493.8,20.43903223]
[1758054145696,0.00200001,4493.9,4493.8,20.72653223]
[1758054146193,1e-08,4494.1,4494.0,6.01718914]
[1758054146439,1e-08,4494.1,4494.0,10.68082586]
[1758054146731,1e-08,4494.1,4494.0,11.90012586]
[1758054147533,0.002,4494.4,4494.3,3.0170406]
[1758054147729,0.002,4494.4,4494.3,14.79215959]
[1758054148033,0.002,4494.4,4494.3,15.98920919]
[1758054148336,0.002,4494.4,4494.3,21.40787438]
[1758054148707,0.122,4494.8,4494.7,3.01684259]
[1758054149027,0.122,4494.8,4494.7,20.7109596]
[1758054149324,0.122,4494.8,4494.7,21.46221118]
[1758054149541,0.122,4494.8,4494.7,21.92971118]
[1758054149718,0.122,4494.8,4494.7,24.46078672]
[1758054149894,0.122,4494.8,4494.7,23.99648672]
[1758054150090,0.4119,4494.8,4494.7,18.19561813]
[1758054150393,1.3569,4494.8,4494.7,23.24148672]
[1758054150792,0.8959,4494.8,4494.7,23.24148672]
[1758054152017,0.122,4494.8,4494.7,24.46078672]
[1758054152958,0.122,4494.8,4494.7,23.52898672]
[1758054154575,0.122,4494.8,4494.7,24.46078672]
[1758054155074,0.122,4494.8,4494.7,23.99648672]
[1758054155837,0.122,4494.8,4494.7,23.52898672]
[1758054156238,0.122,4494.8,4494.7,23.64018672]
[1758054158679,0.122,4494.8,4494.7,23.35268672]
[1758054161500,0.8959,4494.8,4494.7,23.35268672]
[1758054163165,1.3569,4494.8,4494.7,23.35268672]
[1758054163367,0.8959,4494.8,4494.7,23.35268672]
[1758054163706,0.4119,4494.8,4494.7,23.35268672]
[1758054164775,0.4119,4494.8,4494.7,19.64568672]
[1758054164976,1.3569,4494.8,4494.7,23.35168672]
[1758054165375,0.8959,4494.8,4494.7,23.35168672]
[1758054166001,0.4119,4494.8,4494.7,23.35168672]
[1758054166512,1.3569,4494.8,4494.7,16.23904259]
[1758054167004,1.3569,4494.8,4494.7,21.28491118]
[1758054167818,0.8959,4494.8,4494.7,16.23904259]
[1758054168100,1.3569,4494.8,4494.7,16.23904259]
[1758054168807,1.3569,4494.8,4494.7,12.53304259]
[1758054169108,1.3569,4494.8,4494.7,16.23904259]
[1758054169978,0.8959,4494.8,4494.7,16.23904259]
[1758054176511,0.122,4494.8,4494.7,16.54034259]
[1758054176714,0.122,4494.8,4494.7,19.7059014]
[1758054177275,0.122,4494.8,4494.7,15.9999014]
[1758054177474,0.122,4494.8,4494.7,19.7059014]
[1758054178977,0.8875,4494.8,4494.7,18.4570014]
[1758054180519,0.122,4494.8,4494.7,24.50654279]
[1758054181278,0.122,4494.8,4494.7,25.75544279]
[1758054188021,1e-08,4494.8,4494.7,21.54544279]
[1758054190725,1e-08,4494.8,4494.7,20.59784279]
[1758054190923,1e-08,4494.8,4494.7,21.54544279]
[1758054191511,1e-08,4494.9,4494.8,6.01679309]
[1758054191696,1e-08,4494.9,4494.8,8.27108529]
[1758054191904,1e-08,4494.9,4494.8,8.57238529]
[1758054194111,0.30110001,4494.9,4494.8,7.32348529]
[1758054194448,0.76550001,4494.9,4494.8,11.02848529]
[1758054194612,1e-08,4494.9,4494.8,11.02848529]
[1758054196464,0.30110001,4494.9,4494.8,11.02848529]
[1758054196752,1e-08,4494.9,4494.8,11.02848529]
[1758054197433,1e-08,4494.9,4494.8,2.22479309]
[1758054197434,1.22760001,4494.9,4494.8,2.22479309]
[1758054197636,1.22760001,4494.9,4494.8,5.92979309]
[1758054197852,1.22760001,4494.9,4494.8,9.72179309]
[1758054198150,1.22760001,4494.9,4494.8,6.72179309]
[1758054199650,1.22760001,4494.9,4494.8,4.497]
[1758054200359,1.22760001,4494.9,4494.8,4.498]
[1758054200861,1.22960001,4494.9,4494.8,0.001]
[1758054201017,1.22960001,4494.9,4494.8,3.72824793]
[1758054202759,1.22960001,4494.9,4494.8,5.95304102]
[1758054202953,1.22960001,4494.9,4494.8,3.706]
[1758054203350,1.22960001,4494.9,4494.8,3.72824793]
[1758054203549,1.22960001,4494.9,4494.8,5.95304102]
[1758054203756,1.22960001,4494.9,4494.8,5.93079309]
[1758054204860,0.76750001,4494.9,4494.8,5.93079309]
[1758054205757,1.20730001,4494.9,4494.8,5.93079309]
[1758054206862,0.00200001,4494.9,4494.8,7.01049309]
[1758054207063,0.00200001,4494.9,4494.8,18.17571124]
[1758054207424,0.00200001,4494.9,4494.8,18.28691124]
[1758054209959,0.00200001,4494.9,4494.8,11.30896985]
[1758054210182,0.29700001,4494.9,4494.8,11.02126985]
[1758054210361,0.00200001,4494.9,4494.8,11.02126985]
[1758054210675,0.00200001,4494.9,4494.8,7.60396985]
[1758054210985,0.00200001,4494.9,4494.8,11.30896985]
[1758054211154,0.00200001,4494.9,4494.8,12.23736985]
[1758054213788,0.00200001,4494.9,4494.8,16.44736985]
[1758054215309,0.29700001,4494.9,4494.8,11.52626985]
[1758054215460,0.77420001,4494.9,4494.8,15.23126985]
[1758054216296,0.47920001,4494.9,4494.8,15.23126985]
[1758054216907,0.00200001,4494.9,4494.8,15.23126985]
[1758054217603,0.00200001,4494.9,4494.8,11.81396985]
[1758054217807,0.00200001,4494.9,4494.8,15.51896985]
[1758054222479,0.00200001,4494.9,4494.8,16.00586985]
[1758054223918,0.00200001,4494.9,4494.8,16.44736985]
[1758054227626,0.00200001,4494.9,4494.8,16.00586985]
[1758054228134,0.00200001,4494.9,4494.8,16.44736985]
[1758054228906,0.00200001,4494.9,4494.8,16.00586985]
[1758054229825,0.00200001,4494.9,4494.8,20.55963703]
[1758054230032,0.00200001,4494.9,4494.8,11.0262]
[1758054230033,1.21400001,4494.9,4494.8,11.0262]
[1758054230331,1.21400001,4494.9,4494.8,8.8182]
[1758054230698,1.21400001,4494.9,4494.8,11.8182]
[1758054231348,1.21400001,4494.9,4494.8,14.04299309]
[1758054231349,0.29700001,4494.9,4494.8,14.04299309]
[1758054231510,0.00200001,4494.9,4494.8,9.83299309]
[1758054232112,0.00200001,4494.9,4494.8,11.79213798]
[1758054232315,0.77420001,4494.9,4494.8,11.79213798]
[1758054232518,0.77420001,4494.9,4494.8,16.83280516]
[1758054232729,0.29700001,4494.9,4494.8,16.83280516]
[1758054233412,0.29700001,4494.9,4494.8,14.87366027]
[1758054234403,0.00200001,4494.9,4494.8,14.87366027]
[1758054238739,0.00200001,4494.9,4494.8,9.83299309]
[1758054239033,1.22620001,4494.9,4494.8,9.83299309]
[1758054240052,1.22620001,4494.9,4494.8,7.6082]
[1758054240673,1.22620001,4494.9,4494.8,9.83299309]
[1758054240887,1.22620001,4494.9,4494.8,6.8162]
[1758054241483,1.22620001,4494.9,4494.8,9.04099309]
[1758054241883,0.78490001,4494.9,4494.8,9.04099309]
[1758054242243,0.30810001,4494.9,4494.8,9.04099309]
[1758054243054,0.78490001,4494.9,4494.8,9.04099309]
[1758054243265,0.00200001,4494.9,4494.8,9.33749309]
[1758054243469,0.00200001,4494.9,4494.8,9.04099309]
[1758054243854,0.78490001,4494.9,4494.8,9.04099309]
[1758054244258,1.22620001,4494.9,4494.8,9.04099309]
[1758054244878,0.78490001,4494.9,4494.8,9.04099309]
[1758054247114,1.22620001,4494.9,4494.8,9.04099309]
[1758054248993,0.78490001,4494.9,4494.8,9.04099309]
[1758054249993,1.22620001,4494.9,4494.8,9.04099309]
[1758054252559,0.78490001,4494.9,4494.8,9.04099309]
[1758054258719,0.30810001,4494.9,4494.8,6.8162]
[1758054259006,1.22620001,4494.9,4494.8,3.705]
[1758054259160,0.30810001,4494.9,4494.8,3.705]
[1758054259359,0.78490001,4494.9,4494.8,3.705]
[1758054259589,1.22620001,4494.9,4494.8,3.705]
[1758054260178,0.30810001,4494.9,4494.8,3.705]
[1758054260507,0.78490001,4494.9,4494.8,3.705]
[1758054260798,0.30810001,4494.9,4494.8,3.705]
[1758054260963,0.78490001,4494.9,4494.8,3.705]
[1758054261801,0.78490001,4494.9,4494.8,5.92979309]
[1758054262509,0.78490001,4494.9,4494.8,3.705]
[1758054262674,0.30810001,4494.9,4494.8,3.705]
[1758054263500,0.00200001,4494.9,4494.8,5.92979309]
[1758054263706,0.00200001,4494.9,4494.8,3.705]
[1758054264211,0.78490001,4494.9,4494.8,3.705]
[1758054267576,0.00200001,4494.9,4494.8,3.705]
[1758054268176,0.29760001,4494.9,4494.8,3.705]
[1758054268404,0.77100001,4494.9,4494.8,3.705]
[1758054270318,0.00200001,4494.9,4494.8,5.92979309]
[1758054270921,0.00200001,4494.9,4494.8,3.705]
[1758054272011,0.47540001,4494.9,4494.8,3.705]
[1758054274316,0.00200001,4494.9,4494.8,3.705]
[1758054278212,0.29760001,4494.9,4494.8,3.705]
[1758054278412,0.77100001,4494.9,4494.8,3.705]
[1758054280929,0.00200001,4494.9,4494.8,3.705]
[1758054284875,3.4578436,4494.9,4494.8,0.001]
[1758054285075,4.75954922,4494.9,4494.8,3.704]
[1758054285286,4.75954922,4494.9,4494.8,0.001]
[1758054289850,4.75937724,4494.9,4494.8,0.001]
[1758054291379,5.44770552,4494.9,4494.8,0.001]
[1758054291563,8.44770552,4494.9,4494.8,0.001]
[1758054291871,8.44771697,4494.9,4494.8,0.001]
[1758054293977,8.44742342,4494.9,4494.8,0.001]
[1758054297684,8.03106825,4494.9,4494.8,0.001]
[1758054297919,8.44675783,4494.9,4494.8,0.001]
[1758054298481,14.4997618,4494.9,4494.8,0.001]
[1758054302114,2.2249911,4494.4,4494.3,0.001]
[1758054302274,17.85267605,4494.4,4494.3,0.001]
[1758054302607,19.55512977,4494.4,4494.3,0.001]
[1758054304524,19.67138597,4494.4,4494.3,0.001]
[1758054306549,13.618382,4494.4,4494.3,0.001]
[1758054312433,13.61818151,4494.4,4494.3,0.001]
[1758054312636,12.68468151,4494.4,4494.3,0.001]
[1758054313172,13.03542531,4494.4,4494.3,0.001]
[1758054313370,13.15168582,4494.4,4494.3,0.001]
[1758054313551,13.61818582,4494.4,4494.3,0.001]
[1758054313944,13.15168582,4494.4,4494.3,0.001]
[1758054314378,12.68468582,4494.4,4494.3,0.001]
[1758054314979,13.15168582,4494.4,4494.3,0.001]
[1758054315678,12.27952531,4494.4,4494.3,0.3034]
[1758054315975,8.5743349,4494.4,4494.3,0.001]
[1758054316170,12.2783349,4494.4,4494.3,0.001]
[1758054316839,12.5672349,4494.4,4494.3,0.001]
[1758054317871,12.2783349,4494.4,4494.3,0.001]
[1758054318678,12.27847296,4494.4,4494.3,0.001]
[1758054319346,13.03437296,4494.4,4494.3,0.001]
[1758054319547,13.50087296,4494.4,4494.3,0.001]
[1758054320778,13.5013932,4494.4,4494.3,0.001]
[1758054328283,13.50162372,4494.4,4494.3,0.001]
[1758054328998,5.2250406,4494.3,4493.8,1e-08]
[1758054329331,5.22531956,4493.8,4493.3,1e-08]
[1758054329604,11.57389023,4493.4,4493.3,1e-08]
[1758054329804,17.88313145,4493.4,4493.3,1e-08]
[1758054330101,19.90760238,4493.4,4493.3,1e-08]
[1758054330667,19.90761466,4493.4,4493.3,1e-08]
[1758054331581,18.68091466,4493.4,4493.3,1e-08]
[1758054331891,18.26452447,4493.4,4493.3,1e-08]
[1758054332804,18.55992447,4493.4,4493.3,1e-08]
[1758054333005,19.05862447,4493.4,4493.3,1e-08]
[1758054333617,18.26452447,4493.4,4493.3,1e-08]
[1758054333816,18.26452447,4493.4,4493.3,0.31120001]
[1758054335034,18.47301603,4493.4,4493.3,0.31120001]
[1758054335419,19.26711603,4493.4,4493.3,1e-08]
[1758054335736,2.22568439,4493.0,4492.9,0.001]
[1758054335900,6.57022872,4493.0,4492.9,0.001]
[1758054336230,7.04909203,4493.0,4492.9,0.3122]
[1758054336426,7.04909203,4493.0,4492.9,0.7849]
[1758054336793,7.04895267,4493.0,4492.9,0.7849]
[1758054337342,7.04895267,4493.0,4492.9,0.001]
[1758054338732,7.04895267,4493.0,4492.9,0.3122]
[1758054338931,7.04895267,4493.0,4492.9,0.7849]
[1758054341107,3.34395267,4493.0,4492.9,1.2547]
[1758054341307,6.57008936,4493.0,4492.9,1.2547]
[1758054341508,7.04895267,4493.0,4492.9,1.2547]
[1758054342622,7.04895267,4493.0,4492.8,0.001]
[1758054342623,2.22573393,4492.9,4492.8,0.001]
[1758054342818,11.27908473,4492.2,4492.1,1e-08]
[1758054343026,17.88618457,4492.2,4492.1,1e-08]
[1758054343260,18.81748457,4492.2,4492.1,1e-08]
[1758054343752,19.26434895,4492.2,4492.1,1e-08]
[1758054343936,20.60806896,4492.2,4492.1,1e-08]
[1758054344810,20.60720359,4492.2,4492.1,1e-08]
[1758054345238,20.17460359,4492.2,4492.1,1e-08]
[1758054346132,19.67609013,4492.2,4492.1,1e-08]
[1758054347548,19.38069013,4492.2,4492.1,0.31120001]
[1758054347749,19.38069013,4492.2,4492.1,0.78390001]
[1758054348952,19.38069013,4492.2,4492.1,0.31120001]
[1758054349243,19.38069013,4492.2,4492.1,1e-08]
[1758054349920,18.38014824,4492.2,4492.1,1e-08]
[1758054350115,18.38014824,4492.2,4492.1,0.31120001]
[1758054350651,18.38014824,4492.2,4492.1,0.78390001]
[1758054350828,18.38014824,4492.2,4492.1,1e-08]
[1758054351021,18.67554824,4492.2,4492.1,1e-08]
[1758054351634,18.38014824,4492.2,4492.1,0.00100001]
[1758054351919,18.67754824,4492.2,4492.1,0.00100001]
[1758054352258,19.17624824,4492.2,4492.1,0.00100001]
[1758054352429,19.60884824,4492.2,4492.1,0.00100001]
[1758054352615,19.60871213,4492.2,4492.1,0.00100001]
[1758054352820,18.38201213,4492.2,4492.1,0.77420001]
[1758054353435,18.67131213,4492.2,4492.1,0.00100001]
[1758054353638,19.12221213,4492.2,4492.1,0.00100001]
[1758054353817,19.12224058,4492.2,4492.1,0.00100001]
[1758054354720,18.67134058,4492.2,4492.1,0.00100001]
[1758054355828,14.67704058,4492.2,4492.1,0.31470001]
[1758054356027,18.38204058,4492.2,4492.1,0.80670001]
[1758054356658,18.17419111,4492.2,4492.1,0.80670001]
[1758054356862,18.38230129,4492.2,4492.1,0.80670001]
[1758054357438,9.62483921,4492.2,4492.1,1.28040001]
[1758054357642,11.9861192,4492.2,4492.1,1.28040001]
[1758054358262,11.9861192,4492.2,4492.1,0.80670001]
[1758054359769,8.2811192,4492.2,4492.1,0.80670001]
[1758054359940,11.9861192,4492.2,4492.1,0.80670001]
[1758054360145,11.9861192,4492.2,4492.1,1.28040001]
[1758054360346,13.91257828,4492.2,4492.1,1.28040001]
[1758054360747,13.91279273,4492.2,4492.1,0.80670001]
[1758054360948,13.91279273,4492.2,4492.1,0.31470001]
[1758054361370,13.91279273,4492.2,4492.1,0.00100001]
[1758054361572,14.20799273,4492.2,4492.1,0.00100001]
[1758054362136,15.12089273,4492.2,4492.1,0.00100001]
[1758054362638,14.67509273,4492.2,4492.1,0.00100001]
[1758054363466,14.65379273,4492.2,4492.1,0.00100001]
[1758054363676,15.12089273,4492.2,4492.1,0.00100001]
[1758054364567,13.91279273,4492.2,4492.1,0.80670001]
[1758054365689,14.20799273,4492.2,4492.1,0.00100001]
[1758054365890,13.91279273,4492.2,4492.1,0.00100001]
[1758054368759,13.91279273,4492.2,4492.1,0.80670001]
[1758054368967,14.16291683,4492.2,4492.1,0.80670001]
[1758054370257,14.16291683,4492.2,4492.1,0.31470001]
[1758054370592,14.16291683,4492.2,4492.1,0.80670001]
[1758054371001,14.92521683,4492.2,4492.1,0.00100001]
[1758054371407,14.45811683,4492.2,4492.1,0.00100001]
[1758054371607,14.45920415,4492.2,4492.1,0.00100001]
[1758054371933,14.16400415,4492.2,4492.1,0.00100001]
[1758054373328,8.08568069,4492.2,4492.1,0.31470001]
[1758054373497,8.79068069,4492.2,4492.1,1.28040001]
[1758054373878,5.08568069,4492.2,4492.1,1.28040001]
[1758054374079,8.31160239,4492.2,4492.1,1.28040001]
[1758054374278,8.58204239,4492.2,4492.1,1.28040001]
[1758054374881,4.87704239,4492.2,4492.1,1.28040001]
[1758054375079,8.10296409,4492.2,4492.1,1.28040001]
[1758054375282,7.97778111,4492.2,4492.1,1.28040001]
[1758054381729,5.75170035,4492.2,4492.1,1.28040001]
[1758054381941,3.83206205,4492.2,4492.1,1.42054001]
[1758054382311,6.05814281,4492.2,4492.1,1.42054001]
[1758054382515,6.05814281,4492.2,4492.1,1.28040001]
[1758054384443,3.83206205,4492.2,4492.1,1.28040001]
[1758054385417,6.05814281,4492.2,4492.1,1.28040001]